[Event "*** Titled Tuesday Blitz"]
[Site "Chess.com"]
[Date "2020.01.07"]
[Round "2"]
[White "benhal"]
[Black "crazy_machine"]
[Result "1-0"]
[WhiteElo "2349"]
[BlackElo "2642"]
[TimeControl "180+2"]
[EndTime "13:26:14 PST"]
[Termination "benhal won by resignation"]

1. e4 {[%clk 0:03:01.9]} 1... c6 {[%clk 0:02:59.3]} 2. d4 {[%clk 0:03:02.4]}
2... d5 {[%clk 0:03:01.2]} 3. exd5 {[%clk 0:03:03.5]} 3... cxd5 {[%clk
0:03:02.2]} 4. Bd3 {[%clk 0:03:05.2]} 4... Nc6 {[%clk 0:03:02.5]} 5. c3 {[%clk
0:03:06.6]} 5... Qc7 {[%clk 0:03:04.1]} 6. Ne2 {[%clk 0:03:05.8]} 6... Bg4
{[%clk 0:03:05.2]} 7. O-O {[%clk 0:03:06.9]} 7... e6 {[%clk 0:03:03.1]} 8. Qe1
{[%clk 0:03:07.9]} 8... Nf6 {[%clk 0:03:02.9]} 9. Bg5 {[%clk 0:03:08]} 9... Bxe2
{[%clk 0:02:54]} 10. Qxe2 {[%clk 0:03:09.9]} 10... Bd6 {[%clk 0:02:51.3]} 11. g3
{[%clk 0:03:09.4]} 11... O-O-O {[%clk 0:02:51]} 12. Nd2 {[%clk 0:03:02.5]} 12...
h6 {[%clk 0:02:52.2]} 13. Be3 {[%clk 0:03:02]} 13... h5 {[%clk 0:02:51.4]} 14.
c4 {[%clk 0:02:56.3]} 14... h4 {[%clk 0:02:51.5]} 15. c5 {[%clk 0:02:52.8]}
15... Be7 {[%clk 0:02:46.8]} 16. Nf3 {[%clk 0:02:35.9]} 16... hxg3 {[%clk
0:02:38.6]} 17. hxg3 {[%clk 0:02:32.9]} 17... Nh5 {[%clk 0:02:10.4]} 18. Kg2
{[%clk 0:02:32.8]} 18... e5 {[%clk 0:01:53.3]} 19. dxe5 {[%clk 0:02:03.5]} 19...
Nxe5 {[%clk 0:01:55.2]} 20. Nxe5 {[%clk 0:02:01.3]} 20... Qxe5 {[%clk
0:01:57.1]} 21. Rac1 {[%clk 0:01:49.7]} 21... Qe6 {[%clk 0:01:31.4]} 22. Rh1
{[%clk 0:01:41.8]} 22... Nf6 {[%clk 0:01:18.8]} 23. c6 {[%clk 0:01:34.8]} 23...
Rxh1 {[%clk 0:00:52.7]} 24. cxb7+ {[%clk 0:01:29.2]} 24... Kxb7 {[%clk
0:00:54.6]} 25. Rxh1 {[%clk 0:01:29.8]} 25... d4 {[%clk 0:00:44.3]} 26. Qf3+
{[%clk 0:01:27.8]} 26... Qc6 {[%clk 0:00:39.4]} 27. Bd2 {[%clk 0:01:27.9]} 27...
Qxf3+ {[%clk 0:00:37.3]} 28. Kxf3 {[%clk 0:01:29.8]} 28... Bc5 {[%clk
0:00:32.2]} 29. a3 {[%clk 0:01:29.2]} 29... Rd5 {[%clk 0:00:30.2]} 30. b4 {[%clk
0:01:21]} 30... Bb6 {[%clk 0:00:31.3]} 31. g4 {[%clk 0:01:22.3]} 31... Rd8
{[%clk 0:00:22.5]} 32. g5 {[%clk 0:01:22.4]} 32... Nd7 {[%clk 0:00:19.1]} 33.
Be4+ {[%clk 0:01:21.8]} 33... Kb8 {[%clk 0:00:13.1]} 34. Rh7 {[%clk 0:01:15.9]}
34... g6 {[%clk 0:00:14.1]} 35. Bf4+ {[%clk 0:01:14.8]} 35... Bc7 {[%clk
0:00:12.9]} 36. Bxc7+ {[%clk 0:01:12.7]} 36... Kxc7 {[%clk 0:00:14.8]} 37. Rxf7
{[%clk 0:01:14.1]} 37... Kd6 {[%clk 0:00:16.3]} 38. Ke2 {[%clk 0:01:13.8]} 38...
Re8 {[%clk 0:00:11.1]} 39. f3 {[%clk 0:01:14.9]} 39... Ne5 {[%clk 0:00:07.4]}
40. Rxa7 {[%clk 0:01:13]} 40... Rh8 {[%clk 0:00:08.8]} 41. Ra6+ {[%clk
0:01:10.9]} 41... Kc7 {[%clk 0:00:09.5]} 42. Re6 {[%clk 0:01:09.6]} 42... Rh2+
{[%clk 0:00:10]} 43. Kf1 {[%clk 0:01:10.8]} 43... Nf7 {[%clk 0:00:04.9]} 44.
Re7+ {[%clk 0:01:11.4]} 44... Kd6 {[%clk 0:00:05.7]} 45. Rxf7 {[%clk 0:01:13.3]}
45... Ke5 {[%clk 0:00:06.2]} 46. Bxg6 {[%clk 0:01:12.7]} 46... Ra2 {[%clk
0:00:05.9]} 47. f4+ {[%clk 0:01:07.8]} 47... Ke6 {[%clk 0:00:06]} 48. Rf6+
{[%clk 0:01:06.7]} 48... Ke7 {[%clk 0:00:06.4]} 49. Ra6 {[%clk 0:01:07.2]} 49...
Rb2 {[%clk 0:00:04.8]} 50. f5 {[%clk 0:01:07]} 50... Kd7 {[%clk 0:00:04.8]} 51.
f6 {[%clk 0:01:07.7]} 51... Kc7 {[%clk 0:00:05.2]} 52. Bd3 {[%clk 0:01:07.7]}
52... Rd2 {[%clk 0:00:06.1]} 53. f7 {[%clk 0:01:05.9]} 53... Rxd3 {[%clk
0:00:07.2]} 1-0

[Event "*** Titled Tuesday Blitz"]
[Site "Chess.com"]
[Date "2020.01.07"]
[Round "2"]
[White "PotapovaM"]
[Black "narutosmith"]
[Result "1-0"]
[WhiteElo "2502"]
[BlackElo "2258"]
[TimeControl "180+2"]
[EndTime "13:26:16 PST"]
[Termination "PotapovaM won on time"]

1. Nf3 {[%clk 0:03:01.9]} 1... c5 {[%clk 0:03:00.2]} 2. e4 {[%clk 0:02:58.4]}
2... e6 {[%clk 0:03:00.3]} 3. c4 {[%clk 0:02:57.5]} 3... Nc6 {[%clk 0:02:59.4]}
4. Nc3 {[%clk 0:02:57.8]} 4... Nf6 {[%clk 0:02:59.5]} 5. Be2 {[%clk 0:02:53.7]}
5... e5 {[%clk 0:02:48.3]} 6. O-O {[%clk 0:02:53.5]} 6... d6 {[%clk 0:02:49.9]}
7. d3 {[%clk 0:02:53.4]} 7... h6 {[%clk 0:02:44.4]} 8. a3 {[%clk 0:02:54.1]}
8... Be7 {[%clk 0:02:40.7]} 9. b4 {[%clk 0:02:55.4]} 9... O-O {[%clk 0:02:39.8]}
10. Rb1 {[%clk 0:02:55.5]} 10... b6 {[%clk 0:02:36.1]} 11. Be3 {[%clk
0:02:54.8]} 11... Nd4 {[%clk 0:02:35.8]} 12. Bxd4 {[%clk 0:02:46.8]} 12... cxd4
{[%clk 0:02:30.5]} 13. Nd5 {[%clk 0:02:33.9]} 13... Nh7 {[%clk 0:02:29.5]} 14.
Nd2 {[%clk 0:02:29]} 14... Bb7 {[%clk 0:02:30.2]} 15. g3 {[%clk 0:02:08.7]}
15... Bxd5 {[%clk 0:02:29.3]} 16. cxd5 {[%clk 0:02:07.6]} 16... f5 {[%clk
0:02:30]} 17. exf5 {[%clk 0:02:04.8]} 17... Rxf5 {[%clk 0:02:27.1]} 18. Bg4
{[%clk 0:02:06]} 18... Rf8 {[%clk 0:02:27.4]} 19. Ne4 {[%clk 0:01:59.9]} 19...
g6 {[%clk 0:02:04.7]} 20. Be6+ {[%clk 0:01:59.9]} 20... Kg7 {[%clk 0:02:05.5]}
21. h4 {[%clk 0:01:58.8]} 21... h5 {[%clk 0:01:40.6]} 22. Rc1 {[%clk 0:01:54.7]}
22... Bxh4 {[%clk 0:01:30.6]} 23. gxh4 {[%clk 0:01:50.6]} 23... Qxh4 {[%clk
0:01:32.5]} 24. Rc7+ {[%clk 0:01:35.7]} 24... Kh8 {[%clk 0:01:33.2]} 25. f3
{[%clk 0:01:20.4]} 25... Ng5 {[%clk 0:00:56.1]} 26. Qe2 {[%clk 0:01:16.2]} 26...
Nxe4 {[%clk 0:00:36.5]} 27. dxe4 {[%clk 0:00:57.9]} 27... d3 {[%clk 0:00:30.5]}
28. Qh2 {[%clk 0:00:42.8]} 28... Qd8 {[%clk 0:00:18.9]} 29. Rcc1 {[%clk
0:00:35.1]} 29... Rf4 {[%clk 0:00:18]} 30. Rcd1 {[%clk 0:00:27.8]} 30... Qg5+
{[%clk 0:00:13.4]} 31. Qg2 {[%clk 0:00:27.3]} 31... Qh4 {[%clk 0:00:10.9]} 32.
Rxd3 {[%clk 0:00:26.4]} 32... g5 {[%clk 0:00:12]} 33. Qh2 {[%clk 0:00:26.6]}
33... Qxh2+ {[%clk 0:00:08.7]} 34. Kxh2 {[%clk 0:00:28.5]} 34... g4 {[%clk
0:00:09.6]} 35. Bf5 {[%clk 0:00:28]} 35... Rf8 {[%clk 0:00:09.2]} 36. Kg3 {[%clk
0:00:21]} 36... Kg7 {[%clk 0:00:07.7]} 37. Rh1 {[%clk 0:00:19.8]} 37... gxf3
{[%clk 0:00:05.3]} 38. Rxf3 {[%clk 0:00:20.2]} 38... Rxf3+ {[%clk 0:00:05.8]}
39. Kxf3 {[%clk 0:00:21.9]} 39... Kh6 {[%clk 0:00:06.6]} 40. Rg1 {[%clk
0:00:22.2]} 40... Rf6 {[%clk 0:00:05]} 41. Rg8 {[%clk 0:00:22.2]} 41... h4
{[%clk 0:00:04.7]} 42. Kg4 {[%clk 0:00:22.9]} 1-0

[Event "*** Titled Tuesday Blitz"]
[Site "Chess.com"]
[Date "2020.01.07"]
[Round "2"]
[White "GMBenjaminBok"]
[Black "Philosopherrr"]
[Result "1-0"]
[WhiteElo "2863"]
[BlackElo "2450"]
[TimeControl "180+2"]
[EndTime "13:26:18 PST"]
[Termination "GMBenjaminBok won by checkmate"]

1. Nf3 {[%clk 0:03:01.9]} 1... Nf6 {[%clk 0:03:00.1]} 2. c4 {[%clk 0:03:03.4]}
2... e6 {[%clk 0:03:00.8]} 3. g3 {[%clk 0:03:04.9]} 3... d5 {[%clk 0:02:59.9]}
4. Bg2 {[%clk 0:03:06.3]} 4... Be7 {[%clk 0:03:00.1]} 5. O-O {[%clk 0:03:07.4]}
5... O-O {[%clk 0:03:01.5]} 6. b3 {[%clk 0:03:09]} 6... b6 {[%clk 0:02:58.6]} 7.
Nc3 {[%clk 0:03:09.3]} 7... Bb7 {[%clk 0:02:59.9]} 8. d4 {[%clk 0:03:10.9]} 8...
Nbd7 {[%clk 0:02:57.9]} 9. Bb2 {[%clk 0:03:12.4]} 9... c5 {[%clk 0:02:50.6]} 10.
Ne1 {[%clk 0:03:11.8]} 10... cxd4 {[%clk 0:02:13.2]} 11. Qxd4 {[%clk 0:03:12.2]}
11... Nc5 {[%clk 0:02:14.1]} 12. cxd5 {[%clk 0:03:10.9]} 12... exd5 {[%clk
0:02:12]} 13. Nc2 {[%clk 0:03:11.6]} 13... Ne6 {[%clk 0:02:07.4]} 14. Qd3 {[%clk
0:03:01.5]} 14... Rc8 {[%clk 0:01:54.8]} 15. Rfd1 {[%clk 0:02:59.4]} 15... Qc7
{[%clk 0:01:37]} 16. Rac1 {[%clk 0:02:57.4]} 16... Rfd8 {[%clk 0:01:31.1]} 17.
e3 {[%clk 0:02:56.7]} 17... Nc5 {[%clk 0:01:25.2]} 18. Qe2 {[%clk 0:02:30.2]}
18... Ba6 {[%clk 0:01:21.9]} 19. Nb5 {[%clk 0:02:26.2]} 19... Qd7 {[%clk
0:01:17.3]} 20. Ncd4 {[%clk 0:02:25.6]} 20... Ne6 {[%clk 0:01:11.7]} 21. a4
{[%clk 0:02:24.5]} 21... Bb4 {[%clk 0:00:42.5]} 22. Nf5 {[%clk 0:01:56.5]} 22...
Nf4 {[%clk 0:00:31.7]} 23. Nh6+ {[%clk 0:01:46.4]} 23... gxh6 {[%clk 0:00:28.1]}
24. exf4 {[%clk 0:01:47.9]} 24... Qf5 {[%clk 0:00:21.1]} 25. Qe3 {[%clk
0:01:31.9]} 25... Re8 {[%clk 0:00:15.3]} 26. Qd4 {[%clk 0:01:29.8]} 26... Rxc1
{[%clk 0:00:16.4]} 27. Rxc1 {[%clk 0:01:29.9]} 27... Bxb5 {[%clk 0:00:14.4]} 28.
axb5 {[%clk 0:01:29.9]} 28... Be7 {[%clk 0:00:09.6]} 29. Re1 {[%clk 0:01:25]}
29... Kf8 {[%clk 0:00:10]} 30. Bf3 {[%clk 0:01:11.8]} 30... Bc5 {[%clk 0:00:09]}
31. Rxe8+ {[%clk 0:01:11.3]} 31... Nxe8 {[%clk 0:00:10.3]} 32. Qd2 {[%clk
0:00:41.3]} 32... Nf6 {[%clk 0:00:11.1]} 33. Bxf6 {[%clk 0:00:34.5]} 33... Qxf6
{[%clk 0:00:12.1]} 34. b4 {[%clk 0:00:35.9]} 34... Qd4 {[%clk 0:00:11.2]} 35.
Qa2 {[%clk 0:00:21.5]} 35... Bxb4 {[%clk 0:00:07.6]} 36. Bxd5 {[%clk 0:00:22.4]}
36... Bc5 {[%clk 0:00:07.4]} 37. Bxf7 {[%clk 0:00:21.8]} 37... Qd1+ {[%clk
0:00:06.1]} 38. Kg2 {[%clk 0:00:22.5]} 38... Qe1 {[%clk 0:00:06.3]} 39. Bd5
{[%clk 0:00:21.6]} 39... Qe7 {[%clk 0:00:05.3]} 40. Bf3 {[%clk 0:00:21.3]} 40...
Qf6 {[%clk 0:00:05.3]} 41. Qxa7 {[%clk 0:00:17.1]} 41... Qd4 {[%clk 0:00:06.3]}
42. Qb8+ {[%clk 0:00:16.1]} 42... Kg7 {[%clk 0:00:06.6]} 43. Qe5+ {[%clk
0:00:16.8]} 43... Qxe5 {[%clk 0:00:07.5]} 44. fxe5 {[%clk 0:00:18.7]} 44... Kg6
{[%clk 0:00:08.6]} 45. Be4+ {[%clk 0:00:19.3]} 45... Kg5 {[%clk 0:00:09.8]} 46.
f4+ {[%clk 0:00:20.8]} 46... Kh5 {[%clk 0:00:11.1]} 47. Kh3 {[%clk 0:00:20.2]}
47... Bd4 {[%clk 0:00:10.6]} 48. g4# {[%clk 0:00:21.3]} 1-0

[Event "*** Titled Tuesday Blitz"]
[Site "Chess.com"]
[Date "2020.01.07"]
[Round "2"]
[White "cukus"]
[Black "tomozupan"]
[Result "1-0"]
[WhiteElo "2461"]
[BlackElo "2185"]
[TimeControl "180+2"]
[EndTime "13:26:19 PST"]
[Termination "cukus won by resignation"]

1. e4 {[%clk 0:03:01.9]} 1... e5 {[%clk 0:03:00.1]} 2. Nf3 {[%clk 0:03:01.9]}
2... Nc6 {[%clk 0:03:00.9]} 3. Bb5 {[%clk 0:03:01.6]} 3... Nge7 {[%clk
0:03:01.7]} 4. O-O {[%clk 0:02:58.8]} 4... g6 {[%clk 0:03:02.4]} 5. c3 {[%clk
0:02:59.4]} 5... a6 {[%clk 0:03:00]} 6. Ba4 {[%clk 0:02:59.9]} 6... Bg7 {[%clk
0:02:59.3]} 7. d4 {[%clk 0:03:00.7]} 7... exd4 {[%clk 0:02:59.7]} 8. cxd4 {[%clk
0:03:01.4]} 8... b5 {[%clk 0:03:00.6]} 9. Bc2 {[%clk 0:03:00.3]} 9... d6 {[%clk
0:03:01.4]} 10. h3 {[%clk 0:02:55.2]} 10... O-O {[%clk 0:03:01.9]} 11. Nc3
{[%clk 0:02:56]} 11... Na5 {[%clk 0:03:00.8]} 12. b3 {[%clk 0:02:55.4]} 12... c5
{[%clk 0:02:55.1]} 13. Bb2 {[%clk 0:02:54.8]} 13... c4 {[%clk 0:02:46.6]} 14.
Ne2 {[%clk 0:02:51.8]} 14... Nec6 {[%clk 0:02:44.4]} 15. Qd2 {[%clk 0:02:47.1]}
15... b4 {[%clk 0:02:33.9]} 16. Qf4 {[%clk 0:02:42.1]} 16... c3 {[%clk
0:02:28.8]} 17. Bc1 {[%clk 0:02:42.3]} 17... Qf6 {[%clk 0:02:24.5]} 18. Qxf6
{[%clk 0:02:39.7]} 18... Bxf6 {[%clk 0:02:24.9]} 19. Bf4 {[%clk 0:02:41.6]}
19... Rd8 {[%clk 0:02:20.7]} 20. Rad1 {[%clk 0:02:41.4]} 20... Ne7 {[%clk
0:02:01.2]} 21. e5 {[%clk 0:02:41.2]} 21... Bg7 {[%clk 0:01:41.1]} 22. exd6
{[%clk 0:02:27.6]} 22... Nd5 {[%clk 0:01:37.7]} 23. Bg3 {[%clk 0:02:11.9]} 23...
Nb7 {[%clk 0:01:35]} 24. Be4 {[%clk 0:02:04.4]} 24... Be6 {[%clk 0:01:34.5]} 25.
Ng5 {[%clk 0:02:04.9]} 25... Nxd6 {[%clk 0:01:34.7]} 26. Nxe6 {[%clk 0:02:02.3]}
26... fxe6 {[%clk 0:01:03]} 27. Bc2 {[%clk 0:02:02.3]} 27... Nf5 {[%clk
0:00:59.5]} 28. Be5 {[%clk 0:02:01.3]} 28... Bxe5 {[%clk 0:00:58]} 29. dxe5
{[%clk 0:02:01.7]} 29... a5 {[%clk 0:00:40.7]} 30. Nd4 {[%clk 0:01:59.4]} 30...
Nxd4 {[%clk 0:00:37.6]} 31. Rxd4 {[%clk 0:01:59.4]} 31... Ne7 {[%clk 0:00:35.6]}
32. Rfd1 {[%clk 0:01:55.3]} 32... Rxd4 {[%clk 0:00:35.1]} 33. Rxd4 {[%clk
0:01:57.2]} 33... Nd5 {[%clk 0:00:28.9]} 34. Kf1 {[%clk 0:01:50.9]} 34... Rd8
{[%clk 0:00:28.9]} 35. g3 {[%clk 0:01:46.6]} 35... Kf7 {[%clk 0:00:29.3]} 36.
Ke2 {[%clk 0:01:46.8]} 36... Ke7 {[%clk 0:00:29.8]} 37. Kd3 {[%clk 0:01:45.5]}
37... Nb6 {[%clk 0:00:28.3]} 38. Rxd8 {[%clk 0:01:43.9]} 38... Kxd8 {[%clk
0:00:29.3]} 39. Kd4 {[%clk 0:01:44.9]} 39... Kc7 {[%clk 0:00:28.4]} 40. Kc5
{[%clk 0:01:45.7]} 40... Nd7+ {[%clk 0:00:29.1]} 41. Kb5 {[%clk 0:01:44.6]}
41... Nxe5 {[%clk 0:00:30]} 42. Kxa5 {[%clk 0:01:43.7]} 42... Nc6+ {[%clk
0:00:23]} 43. Kb5 {[%clk 0:01:22.6]} 43... Nd4+ {[%clk 0:00:22]} 44. Kxb4 {[%clk
0:01:23.3]} 44... Nxc2+ {[%clk 0:00:22.6]} 45. Kxc3 {[%clk 0:01:23.9]} 45... Ne1
{[%clk 0:00:15.6]} 46. a4 {[%clk 0:01:18.8]} 46... Nf3 {[%clk 0:00:16]} 47. b4
{[%clk 0:01:15.2]} 47... Ng1 {[%clk 0:00:16.9]} 48. h4 {[%clk 0:01:14]} 48...
Nh3 {[%clk 0:00:17.9]} 49. Kd4 {[%clk 0:01:10]} 49... Kd6 {[%clk 0:00:16.7]} 50.
f3 {[%clk 0:01:05.8]} 50... Ng1 {[%clk 0:00:15.8]} 51. Ke3 {[%clk 0:01:04.7]}
51... h6 {[%clk 0:00:12.1]} 52. Kf2 {[%clk 0:01:03.4]} 52... Nh3+ {[%clk
0:00:12.3]} 53. Kg2 {[%clk 0:01:03.6]} 53... Nf4+ {[%clk 0:00:07.9]} 54. gxf4
{[%clk 0:01:04]} 54... Kd5 {[%clk 0:00:08.9]} 55. a5 {[%clk 0:01:04.5]} 1-0

[Event "*** Titled Tuesday Blitz"]
[Site "Chess.com"]
[Date "2020.01.07"]
[Round "2"]
[White "ChessSkool"]
[Black "Vegan4future"]
[Result "0-1"]
[WhiteElo "2687"]
[BlackElo "2429"]
[TimeControl "180+2"]
[EndTime "13:26:20 PST"]
[Termination "Vegan4future won by resignation"]

1. d4 {[%clk 0:03:01.9]} 1... Nf6 {[%clk 0:02:59.1]} 2. c4 {[%clk 0:03:02.9]}
2... g6 {[%clk 0:03:00.4]} 3. Nc3 {[%clk 0:03:01.4]} 3... Bg7 {[%clk 0:03:01.8]}
4. e4 {[%clk 0:03:01.3]} 4... d6 {[%clk 0:03:03.3]} 5. h3 {[%clk 0:03:01.1]}
5... O-O {[%clk 0:03:04.1]} 6. Be3 {[%clk 0:03:02.7]} 6... e5 {[%clk 0:03:02.5]}
7. d5 {[%clk 0:03:03.8]} 7... a5 {[%clk 0:03:03.2]} 8. g4 {[%clk 0:03:03.8]}
8... Na6 {[%clk 0:03:03.5]} 9. Nge2 {[%clk 0:03:03.2]} 9... Nd7 {[%clk
0:03:04.9]} 10. h4 {[%clk 0:02:52.5]} 10... f5 {[%clk 0:02:44.1]} 11. gxf5
{[%clk 0:02:29]} 11... gxf5 {[%clk 0:02:46]} 12. exf5 {[%clk 0:02:30.3]} 12...
Ndc5 {[%clk 0:02:40.2]} 13. Ng3 {[%clk 0:02:29.1]} 13... Bxf5 {[%clk 0:02:34.2]}
14. Nxf5 {[%clk 0:02:22.2]} 14... Rxf5 {[%clk 0:02:36.1]} 15. Qg4 {[%clk
0:02:21.6]} 15... Qf6 {[%clk 0:02:23.3]} 16. O-O-O {[%clk 0:02:12]} 16... Kh8
{[%clk 0:01:57.4]} 17. Bh3 {[%clk 0:01:42.7]} 17... Rf3 {[%clk 0:01:57.4]} 18.
Bg2 {[%clk 0:01:44]} 18... Rf5 {[%clk 0:01:32]} 19. Ne4 {[%clk 0:01:33.8]} 19...
Qf8 {[%clk 0:01:30.3]} 20. Kb1 {[%clk 0:01:06.4]} 20... Re8 {[%clk 0:01:29.8]}
21. h5 {[%clk 0:01:04.9]} 21... h6 {[%clk 0:01:12.2]} 22. Rhg1 {[%clk 0:00:39]}
22... Qf7 {[%clk 0:01:02.4]} 23. Nxc5 {[%clk 0:00:25.7]} 23... Nxc5 {[%clk
0:01:02.8]} 24. Bxc5 {[%clk 0:00:27.1]} 24... dxc5 {[%clk 0:01:04.3]} 25. Be4
{[%clk 0:00:28.6]} 25... Rg5 {[%clk 0:01:05.3]} 26. Qh4 {[%clk 0:00:22.2]} 26...
Bf6 {[%clk 0:01:01.5]} 27. Bg6 {[%clk 0:00:17.8]} 27... Rxg1 {[%clk 0:00:54.7]}
28. Rxg1 {[%clk 0:00:07.2]} 28... Qxg6+ {[%clk 0:00:50.2]} 29. Rxg6 {[%clk
0:00:09.1]} 29... Bxh4 {[%clk 0:00:51.4]} 30. Rxh6+ {[%clk 0:00:10.8]} 30... Kg7
{[%clk 0:00:52.8]} 31. Rg6+ {[%clk 0:00:12.5]} 31... Kf7 {[%clk 0:00:54.3]} 32.
Kc2 {[%clk 0:00:08.2]} 32... Bf6 {[%clk 0:00:54.6]} 33. Rg2 {[%clk 0:00:04.8]}
33... Rh8 {[%clk 0:00:55]} 34. Rh2 {[%clk 0:00:05.6]} 34... Bg5 {[%clk 0:00:56]}
35. Kd3 {[%clk 0:00:06.8]} 35... Bf4 {[%clk 0:00:51.3]} 36. Rh3 {[%clk
0:00:08.3]} 36... Kf6 {[%clk 0:00:52.8]} 37. Ke4 {[%clk 0:00:09.7]} 37... a4
{[%clk 0:00:52.5]} 38. b3 {[%clk 0:00:09.1]} 38... axb3 {[%clk 0:00:53]} 39.
Rxb3 {[%clk 0:00:11]} 39... b6 {[%clk 0:00:53.4]} 40. d6 {[%clk 0:00:12.5]}
40... cxd6 {[%clk 0:00:53.4]} 41. Kd5 {[%clk 0:00:09.5]} 41... Rxh5 {[%clk
0:00:51.3]} 42. Rxb6 {[%clk 0:00:07.1]} 42... Rh2 {[%clk 0:00:52.6]} 43. Rxd6+
{[%clk 0:00:07.7]} 43... Kf5 {[%clk 0:00:54.1]} 44. Kxc5 {[%clk 0:00:04.5]}
44... Rxf2 {[%clk 0:00:55.5]} 45. a4 {[%clk 0:00:04.1]} 45... e4 {[%clk
0:00:54.3]} 46. Rd8 {[%clk 0:00:03.3]} 46... Ra2 {[%clk 0:00:53.8]} 47. Rf8+
{[%clk 0:00:02.5]} 47... Kg4 {[%clk 0:00:53.7]} 48. Re8 {[%clk 0:00:03.5]} 48...
Kf3 {[%clk 0:00:54.4]} 49. Kd4 {[%clk 0:00:02.5]} 49... e3 {[%clk 0:00:54.7]}
50. c5 {[%clk 0:00:04.1]} 50... e2 {[%clk 0:00:55.2]} 51. c6 {[%clk 0:00:04.6]}
51... Rxa4+ {[%clk 0:00:56.2]} 52. Kd3 {[%clk 0:00:03.3]} 52... Ra3+ {[%clk
0:00:56.3]} 53. Kc2 {[%clk 0:00:02.4]} 53... Re3 {[%clk 0:00:53.2]} 54. Rxe3+
{[%clk 0:00:02.2]} 54... Kxe3 {[%clk 0:00:55.1]} 55. c7 {[%clk 0:00:02.6]} 55...
Bxc7 {[%clk 0:00:55.7]} 0-1

[Event "*** Titled Tuesday Blitz"]
[Site "Chess.com"]
[Date "2020.01.07"]
[Round "2"]
[White "ValeriyGrinev"]
[Black "Gareth-Bale11"]
[Result "1-0"]
[WhiteElo "2542"]
[BlackElo "2720"]
[TimeControl "180+2"]
[EndTime "13:26:21 PST"]
[Termination "ValeriyGrinev won by checkmate"]

1. d4 {[%clk 0:03:01.9]} 1... Nf6 {[%clk 0:02:59.7]} 2. c4 {[%clk 0:03:03.3]}
2... e6 {[%clk 0:03:00.8]} 3. Nc3 {[%clk 0:03:04.8]} 3... Bb4 {[%clk 0:03:01.4]}
4. e3 {[%clk 0:03:06.4]} 4... O-O {[%clk 0:03:00.1]} 5. Bd2 {[%clk 0:03:07.8]}
5... d5 {[%clk 0:03:00.8]} 6. Rc1 {[%clk 0:03:06.9]} 6... Re8 {[%clk 0:02:56.8]}
7. cxd5 {[%clk 0:03:04.7]} 7... exd5 {[%clk 0:02:58.7]} 8. Bd3 {[%clk
0:03:05.6]} 8... c6 {[%clk 0:02:58.5]} 9. Nge2 {[%clk 0:02:59.9]} 9... Bd6
{[%clk 0:02:59.4]} 10. Ng3 {[%clk 0:03:00.1]} 10... g6 {[%clk 0:02:55]} 11. O-O
{[%clk 0:02:52.5]} 11... h5 {[%clk 0:02:33.9]} 12. f3 {[%clk 0:02:26.2]} 12...
Qc7 {[%clk 0:02:08.4]} 13. Nb5 {[%clk 0:02:25.4]} 13... Qe7 {[%clk 0:02:07.9]}
14. Nxd6 {[%clk 0:02:26.3]} 14... Qxd6 {[%clk 0:02:09.8]} 15. Qe1 {[%clk
0:02:15.1]} 15... Nbd7 {[%clk 0:02:06.7]} 16. Qf2 {[%clk 0:02:16.1]} 16... h4
{[%clk 0:01:59.7]} 17. Ne2 {[%clk 0:02:16.7]} 17... h3 {[%clk 0:02:01.6]} 18. g4
{[%clk 0:02:17]} 18... c5 {[%clk 0:01:42.9]} 19. Qh4 {[%clk 0:01:32.1]} 19... c4
{[%clk 0:01:20.9]} 20. Bb1 {[%clk 0:01:31.9]} 20... b5 {[%clk 0:01:20.9]} 21.
Qxh3 {[%clk 0:01:06.6]} 21... b4 {[%clk 0:01:09.9]} 22. Qg3 {[%clk 0:01:07.3]}
22... Qxg3+ {[%clk 0:00:58]} 23. Nxg3 {[%clk 0:01:09.2]} 23... a5 {[%clk
0:00:59.2]} 24. e4 {[%clk 0:01:10.7]} 24... dxe4 {[%clk 0:00:54.3]} 25. fxe4
{[%clk 0:01:12.6]} 25... Ba6 {[%clk 0:00:39.6]} 26. g5 {[%clk 0:01:06.4]} 26...
c3 {[%clk 0:00:28.9]} 27. bxc3 {[%clk 0:01:07]} 27... Bxf1 {[%clk 0:00:29.7]}
28. Rxf1 {[%clk 0:01:04.9]} 28... bxc3 {[%clk 0:00:30.2]} 29. Bxc3 {[%clk
0:01:05.2]} 29... Nh7 {[%clk 0:00:29.2]} 30. h4 {[%clk 0:01:04.6]} 30... Nb6
{[%clk 0:00:30.1]} 31. d5 {[%clk 0:01:01.9]} 31... Nc4 {[%clk 0:00:28.2]} 32.
Bd3 {[%clk 0:00:59.4]} 32... Ne5 {[%clk 0:00:26.9]} 33. Bb5 {[%clk 0:00:54.4]}
33... Re7 {[%clk 0:00:22]} 34. Ne2 {[%clk 0:00:43.4]} 34... Nf8 {[%clk
0:00:21.7]} 35. a4 {[%clk 0:00:37.4]} 35... Nfd7 {[%clk 0:00:21.8]} 36. Nd4
{[%clk 0:00:36.3]} 36... Nc5 {[%clk 0:00:23.1]} 37. d6 {[%clk 0:00:27.8]} 37...
Rb7 {[%clk 0:00:19.8]} 38. Nc6 {[%clk 0:00:28.5]} 38... Ng4 {[%clk 0:00:09.2]}
39. Ne7+ {[%clk 0:00:25]} 39... Kf8 {[%clk 0:00:10.6]} 40. Nxg6+ {[%clk
0:00:25]} 40... Kg8 {[%clk 0:00:11.7]} 41. Ne7+ {[%clk 0:00:26.1]} 41... Kf8
{[%clk 0:00:13.1]} 42. g6 {[%clk 0:00:27.6]} 42... f6 {[%clk 0:00:08.5]} 43.
Bxf6 {[%clk 0:00:20.8]} 43... Nxe4 {[%clk 0:00:08.9]} 44. Bg5+ {[%clk
0:00:19.8]} 44... Ngf2 {[%clk 0:00:08.1]} 45. Rxf2+ {[%clk 0:00:20.5]} 45...
Nxf2 {[%clk 0:00:09.1]} 46. Kxf2 {[%clk 0:00:22.4]} 46... Rb6 {[%clk 0:00:10.8]}
47. Bh6# {[%clk 0:00:23.5]} 1-0